bitfinex-derivatives/quotes_BTCF0:USTF0_20241128
["timestamp","ask_amount","ask_price","bid_price","bid_amount"]
[1732836790608,0.412866,96017.0,95996.0,0.00156241]
[1732836790609,0.052077,95997.0,95996.0,0.00156241]
[1732836790814,0.41298264,95997.0,95996.0,0.00156241]
[1732836791114,0.052082,95988.0,95987.0,0.052082]
[1732836793008,0.412882,95988.0,95987.0,0.052082]
[1732836793713,0.052082,95988.0,95987.0,0.052082]
[1732836794408,0.052082,95988.0,95987.0,0.057082]
[1732836794706,0.052082,95988.0,95987.0,0.058082]
[1732836796712,0.052082,95988.0,95987.0,0.006]
[1732836797607,0.4650934,95997.0,95985.0,0.052083]
[1732836797812,0.052083,95986.0,95985.0,0.052083]
[1732836798907,0.052083,95986.0,95985.0,0.053083]
[1732836800012,0.052083,95986.0,95985.0,0.001]
[1732836800202,0.052083,95986.0,95985.0,0.007]
[1732836800811,0.052083,95986.0,95985.0,0.006]
[1732836801113,0.052083,95986.0,95985.0,0.007]
[1732836801307,0.052083,95986.0,95985.0,0.059083]
[1732836802611,0.052083,95986.0,95985.0,0.007]
[1732836803504,0.412883,95986.0,95985.0,0.007]
[1732836809005,0.052083,95986.0,95985.0,0.059083]
[1732836809208,0.05208,95991.0,95990.0,0.052078]
[1732836810721,0.05208,95991.0,95990.0,0.055078]
[1732836812819,0.16272,95996.0,95995.0,0.052078]
[1732836813020,0.00066565,95997.0,95996.0,0.052077]
[1732836813219,0.36236304,96008.0,96007.0,0.052071]
[1732836813419,0.00156304,96008.0,96007.0,0.052071]
[1732836814220,0.00167976,96008.0,96007.0,0.052071]
[1732836814425,0.00667976,96008.0,96007.0,0.052071]
[1732836814922,0.00167976,96008.0,96007.0,0.057071]
[1732836815918,0.00167976,96008.0,96007.0,0.058071]
[1732836816113,0.00167976,96008.0,96007.0,0.07195494]
[1732836816620,0.00167976,96008.0,96007.0,0.06895494]
[1732836816926,0.00167976,96008.0,96007.0,0.07095494]
[1732836817425,0.00167976,96008.0,96007.0,0.06795494]
[1732836817629,0.00167976,96008.0,96007.0,0.07295494]
[1732836817926,0.00167976,96008.0,96007.0,0.38543494]
[1732836818226,0.054459,96030.0,96029.0,0.052059]
[1732836818414,0.052059,96030.0,96029.0,0.052059]
[1732836819229,0.05217894,96030.0,96029.0,0.052059]
[1732836819416,0.00011994,96030.0,96019.0,0.3923]
[1732836819616,0.00011994,96030.0,96009.0,0.00156226]
[1732836819617,0.3608,96022.0,96009.0,0.00156226]
[1732836819824,0.052066,96018.0,96017.0,0.052064]
[1732836820430,0.00911994,96030.0,96010.0,0.10418776]
[1732836820622,0.052062,96024.0,96023.0,0.052063]
[1732836823024,0.056062,96024.0,96023.0,0.052063]
[1732836823432,0.060062,96024.0,96023.0,0.052063]
[1732836824126,0.060062,96024.0,96013.0,0.0332]
[1732836824326,0.052066,96019.0,96018.0,0.052065]
[1732836826629,0.054066,96019.0,96018.0,0.052065]
[1732836827236,0.055066,96019.0,96018.0,0.052065]
[1732836827865,0.058066,96019.0,96018.0,0.046065]
[1732836828740,0.060066,96019.0,96018.0,0.046065]
[1732836829543,0.057066,96019.0,96018.0,0.046065]
[1732836830047,0.056066,96019.0,96018.0,0.046065]
[1732836830288,0.003,96019.0,96018.0,0.046065]
[1732836830447,0.007,96019.0,96018.0,0.046065]
[1732836830644,0.008,96019.0,96018.0,0.046065]
[1732836831564,0.060065,96019.0,96018.0,0.046065]
[1732836831879,0.008,96019.0,96018.0,0.046065]
[1732836832348,0.060065,96019.0,96018.0,0.046065]
[1732836832765,0.008,96019.0,96018.0,0.046065]
[1732836840656,0.060065,96019.0,96018.0,0.046065]
[1732836841060,0.008,96019.0,96018.0,0.046065]
[1732836842361,0.008,96019.0,96013.0,0.052067]
[1732836842564,0.052068,96013.0,96009.0,0.01393419]
[1732836842766,0.052074,96002.0,96001.0,0.3548]
[1732836843768,0.052074,96002.0,96001.0,0.406874]
[1732836844169,0.052074,96002.0,96001.0,0.06969441]
[1732836844674,0.052074,96002.0,96001.0,0.005]
[1732836845170,0.052076,95999.0,95998.0,0.05363826]
[1732836845367,0.052076,95999.0,95998.0,0.07134542]
[1732836846868,0.053076,95999.0,95998.0,0.07134542]
[1732836847267,0.055076,95999.0,95998.0,0.07134542]
[1732836847762,0.003,95999.0,95998.0,0.07134542]
[1732836848258,0.055076,95999.0,95998.0,0.07134542]
[1732836850348,0.055076,95999.0,95998.0,0.00156226]
[1732836850553,0.05520038,95999.0,95998.0,0.00156226]
[1732836850965,0.41600038,95999.0,95998.0,0.00156226]
[1732836854869,0.052081,95989.0,95988.0,0.052081]
[1732836856958,0.052081,95989.0,95988.0,0.056081]
[1732836857367,0.052081,95989.0,95988.0,0.004]
[1732836857771,0.052086,95980.0,95979.0,0.37665376]
[1732836858069,0.052086,95980.0,95979.0,0.01785376]
[1732836858272,0.052091,95971.0,95968.0,0.0536549]
[1732836858470,0.052092,95969.0,95968.0,0.0536549]
[1732836859165,0.052092,95969.0,95968.0,0.07169349]
[1732836859970,0.052092,95969.0,95968.0,0.07769349]
[1732836860672,0.053092,95969.0,95968.0,0.08669349]
[1732836862971,0.001,95969.0,95968.0,0.08669349]
[1732836863170,0.053092,95969.0,95968.0,0.08669349]
[1732836864372,0.053092,95969.0,95968.0,0.08513059]
[1732836865970,0.053092,95969.0,95968.0,0.03303859]
[1732836866672,0.053092,95969.0,95968.0,0.015]
[1732836866673,0.05318822,95969.0,95968.0,0.015]
[1732836868977,0.05318822,95969.0,95953.0,0.0836]
[1732836868978,0.66621223,95969.0,95946.0,0.0049]
[1732836869187,0.66621223,95969.0,95948.0,8.604e-05]
[1732836869188,0.052103,95949.0,95948.0,8.604e-05]
[1732836869477,0.052114,95928.0,95927.0,0.0405]
[1732836869779,0.052114,95928.0,95927.0,0.01773266]
[1732836869978,0.3608,95936.0,95924.0,0.052116]
[1732836870175,0.052116,95924.0,95921.0,0.052118]
[1732836870376,0.052117,95922.0,95921.0,0.052118]
[1732836870575,8.627e-05,95924.0,95921.0,0.01768627]
[1732836870881,0.05212,95917.0,95916.0,0.0332]
[1732836871876,0.05212,95917.0,95916.0,0.085321]
[1732836872281,8.627e-05,95924.0,95921.0,0.052118]
[1732836872282,0.052118,95922.0,95921.0,0.052118]
[1732836872681,0.053118,95922.0,95921.0,0.055118]
[1732836873788,8.627e-05,95924.0,95916.0,0.05564358]
[1732836873985,0.05312,95917.0,95916.0,0.11676458]
[1732836874492,0.05212,95917.0,95916.0,0.10776458]
[1732836874681,0.05212,95917.0,95916.0,0.10276458]
[1732836875498,0.052122,95914.0,95913.0,0.0639]
[1732836875881,0.3618,95917.0,95912.0,0.00156389]
[1732836876080,0.052122,95913.0,95912.0,0.00156389]
[1732836876379,0.3618,95917.0,95912.0,0.00156389]
[1732836876579,0.052122,95916.0,95915.0,0.052121]
[1732836878184,0.052122,95914.0,95913.0,0.009]
[1732836878390,0.052122,95914.0,95913.0,0.055122]
[1732836879392,0.053122,95914.0,95913.0,0.061122]
[1732836879986,0.053122,95914.0,95913.0,0.009]
[1732836881709,0.053122,95914.0,95913.0,0.006]
[1732836881883,0.001,95914.0,95913.0,0.058122]
[1732836882083,0.001,95914.0,95913.0,0.121122]
[1732836882884,0.053122,95914.0,95913.0,0.006]
[1732836884296,0.054122,95914.0,95913.0,0.015]
[1732836885577,0.084322,95914.0,95913.0,0.015]
[1732836887492,0.052127,95905.0,95904.0,0.018156]
[1732836887689,0.052129,95901.0,95900.0,0.146129]
[1732836887898,0.052129,95901.0,95900.0,0.16375919]
[1732836888888,0.001,95901.0,95900.0,0.17275919]
[1732836889381,0.053129,95901.0,95900.0,0.17275919]
[1732836890394,0.053129,95901.0,95900.0,0.16875919]
[1732836890593,0.002,95901.0,95900.0,0.17075919]
[1732836890793,0.002,95901.0,95900.0,0.53155919]
[1732836890984,0.054129,95901.0,95900.0,0.53155919]
[1732836891194,0.054129,95901.0,95900.0,0.52655919]
[1732836891386,0.054129,95901.0,95900.0,0.64655919]
[1732836891992,0.054129,95901.0,95900.0,0.59443019]
[1732836892290,0.054129,95901.0,95900.0,0.23363019]
[1732836894890,0.054129,95901.0,95900.0,0.27363019]
[1732836895994,0.054129,95901.0,95900.0,0.32575919]
[1732836896800,0.36136001,95910.0,95909.0,0.052124]
[1732836897101,0.052123,95914.0,95913.0,0.052122]
[1732836897291,0.052123,95914.0,95913.0,0.192122]
[1732836897491,0.052119,95919.0,95918.0,0.052119]
[1732836897686,0.052119,95919.0,95918.0,0.092119]
[1732836897895,0.00156405,95922.0,95921.0,0.052118]
[1732836898097,0.00156405,95922.0,95921.0,0.172118]
[1732836898686,0.05368105,95922.0,95921.0,0.052118]
[1732836898894,0.05368105,95922.0,95921.0,0.092118]
[1732836899096,0.05368105,95922.0,95921.0,0.052118]
[1732836899696,0.05368105,95922.0,95921.0,0.092118]
[1732836899998,0.05368105,95922.0,95921.0,0.052118]
[1732836900499,0.05468105,95922.0,95921.0,0.055118]
[1732836900698,0.05468105,95922.0,95921.0,0.185118]
[1732836900996,0.05468105,95922.0,95921.0,0.095118]
[1732836901195,0.05468105,95922.0,95921.0,0.057118]
[1732836901404,0.05468105,95922.0,95921.0,0.117118]
[1732836901703,0.05468105,95922.0,95921.0,0.167118]
[1732836901892,0.05468105,95922.0,95921.0,0.057118]
[1732836902092,0.05468105,95922.0,95921.0,0.097118]
[1732836902487,0.05468105,95922.0,95921.0,0.057118]
[1732836902800,0.05468105,95922.0,95921.0,0.107118]
[1732836903004,0.05468105,95922.0,95921.0,0.057118]
[1732836903189,0.05468105,95922.0,95921.0,0.005]
[1732836903702,0.05468105,95922.0,95921.0,0.045]
[1732836903897,0.05468105,95922.0,95921.0,0.097118]
[1732836904098,0.05468105,95922.0,95921.0,0.057118]
[1732836904696,0.05468105,95922.0,95921.0,0.005]
[1732836904899,0.05468105,95922.0,95921.0,0.057118]
[1732836906707,0.00256405,95922.0,95921.0,0.057118]
[1732836907104,0.00256405,95922.0,95921.0,0.147118]
[1732836911797,0.05468105,95922.0,95921.0,0.147118]
[1732836913897,0.05468105,95922.0,95921.0,0.095]
[1732836914102,0.05468105,95922.0,95921.0,0.005]
[1732836914510,0.41548105,95922.0,95921.0,0.005]
[1732836914805,0.052128,95904.0,95903.0,0.052127]
[1732836915011,0.052128,95904.0,95903.0,0.212127]
[1732836915321,0.166,95915.0,95914.0,0.052122]
[1732836915511,0.166,95915.0,95900.0,0.47269973]
[1732836915707,0.166,95915.0,95909.0,0.052124]
[1732836915907,0.166,95915.0,95900.0,0.61269973]
[1732836915908,0.166,95915.0,95900.0,0.47269973]
[1732836916207,0.052129,95901.0,95900.0,0.244]
[1732836917304,0.052129,95901.0,95900.0,0.248]
[1732836917511,0.052129,95901.0,95900.0,0.098]
[1732836918007,0.053129,95901.0,95900.0,0.150129]
[1732836918713,0.053129,95901.0,95900.0,0.098]
[1732836920108,0.053129,95901.0,95900.0,0.190129]
[1732836920309,0.001,95901.0,95900.0,0.190129]
[1732836920809,0.001,95901.0,95900.0,0.270129]
[1732836922001,0.001,95901.0,95900.0,0.630929]
[1732836922805,0.001,95901.0,95900.0,0.624929]
[1732836926316,0.001,95901.0,95900.0,0.937769]
[1732836926515,0.0024,95919.0,95918.0,0.05212]
[1732836926722,0.41300327,95924.0,95918.0,0.05212]
[1732836926723,0.00156405,95922.0,95921.0,0.052118]
[1732836926907,0.00156405,95922.0,95921.0,0.072118]
[1732836927823,0.00156405,95922.0,95921.0,0.112118]
[1732836928121,0.05368105,95922.0,95921.0,0.092118]
[1732836928520,0.00156405,95922.0,95916.0,0.3608]
[1732836928721,0.052124,95911.0,95910.0,0.052124]
[1732836928921,0.001,95919.0,95918.0,0.05212]
[1732836929113,0.001,95919.0,95918.0,0.09212]
[1732836929813,0.052119,95920.0,95919.0,0.052119]
[1732836930013,0.00156405,95922.0,95921.0,0.052118]
[1732836930216,0.00156405,95922.0,95921.0,0.152118]
[1732836930626,0.00156405,95922.0,95921.0,0.102118]
[1732836930823,0.00156405,95922.0,95921.0,0.092118]
[1732836931122,0.00156405,95922.0,95921.0,0.052118]
[1732836931623,0.00156405,95922.0,95921.0,0.102118]
[1732836933923,0.00256405,95922.0,95921.0,0.212118]
[1732836934122,0.00256405,95922.0,95921.0,0.213118]
[1732836934821,0.05468105,95922.0,95921.0,0.001]
[1732836935321,0.05468105,95922.0,95921.0,0.051]
[1732836935517,0.05468105,95922.0,95921.0,0.001]
[1732836936528,0.72824105,95922.0,95921.0,0.001]
[1732836936715,0.74576274,95922.0,95921.0,0.001]
[1732836936915,0.60576274,95922.0,95921.0,0.001]
[1732836937129,0.91852274,95922.0,95921.0,0.001]
[1732836937721,0.91852274,95922.0,95911.0,0.052123]
[1732836937722,0.88669481,95922.0,95911.0,0.047123]
[1732836937927,0.052123,95912.0,95911.0,0.047123]
[1732836938617,0.052123,95912.0,95911.0,0.087123]
[1732836939014,0.052123,95912.0,95911.0,0.097123]
[1732836939210,0.052123,95912.0,95911.0,0.047123]
[1732836939424,0.052126,95907.0,95906.0,0.07003407]
[1732836939719,0.052126,95907.0,95906.0,0.052126]
[1732836940427,0.052126,95907.0,95900.0,0.088]
[1732836940428,0.001,95912.0,95900.0,0.088]
[1732836940723,0.052129,95903.0,95902.0,0.052128]
[1732836941324,0.052129,95903.0,95902.0,0.092128]
[1732836942729,0.052129,95903.0,95902.0,0.052128]
[1732836942928,0.053129,95903.0,95902.0,0.052128]
[1732836943430,0.053129,95903.0,95902.0,0.056128]
[1732836943929,0.413929,95903.0,95902.0,0.004]
[1732836944423,0.580609,95903.0,95902.0,0.004]
[1732836945725,0.59789594,95903.0,95902.0,0.004]
[1732836946217,0.59789594,95903.0,95893.0,0.00011309]
[1732836946218,0.052133,95894.0,95893.0,0.00011309]
[1732836946423,0.412933,95894.0,95893.0,0.00011309]
[1732836947627,0.412933,95894.0,95893.0,0.00311309]
[1732836948019,0.413933,95894.0,95893.0,0.00311309]
[1732836948632,0.05214,95880.0,95879.0,0.05370422]
[1732836948932,0.05214,95880.0,95879.0,0.10370422]
[1732836949726,0.05214,95880.0,95879.0,0.05156422]
[1732836950030,0.05314,95880.0,95879.0,0.05156422]
[1732836950225,0.05314,95880.0,95879.0,0.00156422]
[1732836950423,0.05414,95880.0,95879.0,0.00156422]
[1732836951332,0.002,95880.0,95861.0,0.0024]
[1732836951533,0.052148,95868.0,95867.0,0.052147]
[1732836951834,0.052148,95868.0,95856.0,0.0311]
[1732836952138,0.052153,95861.0,95860.0,0.052151]
[1732836952726,0.052153,95861.0,95860.0,0.046151]
[1732836953727,0.001,95861.0,95860.0,0.126151]
[1732836954123,0.002,95861.0,95860.0,0.126151]
[1732836960436,0.0049,95880.0,95878.0,0.052141]
[1732836960647,0.3608,95889.0,95878.0,0.202141]
[1732836960838,0.3608,95889.0,95887.0,0.052136]
[1732836961045,0.3608,95889.0,95887.0,0.202136]
[1732836961939,0.00163961,95888.0,95887.0,0.202136]
[1732836963530,0.00163961,95888.0,95887.0,0.203136]
[1732836964140,0.00263961,95888.0,95887.0,0.203136]
[1732836967245,0.00107476,95888.0,95887.0,0.203136]
[1732836967441,0.0049,95907.0,95887.0,0.516016]
[1732836967644,0.3608,95911.0,95887.0,0.516016]
[1732836967645,0.052128,95902.0,95901.0,0.052128]
[1732836967862,0.052125,95909.0,95894.0,0.052132]
[1732836968144,0.052125,95909.0,95908.0,0.052125]
[1732836968653,0.05219822,95909.0,95908.0,0.052125]
[1732836970144,0.05319822,95909.0,95908.0,0.052125]
[1732836970349,0.05919822,95909.0,95908.0,0.052125]
[1732836970740,0.05819822,95909.0,95908.0,0.112125]
[1732836970939,0.06319822,95909.0,95908.0,0.092125]
[1732836971152,0.06319822,95909.0,95908.0,0.052125]
[1732836971450,0.06319822,95909.0,95908.0,0.092125]
[1732836971451,0.06219822,95909.0,95908.0,0.092125]
[1732836971643,0.06219822,95909.0,95908.0,0.052125]
[1732836971846,0.06219822,95909.0,95908.0,0.062125]
[1732836972048,0.01007322,95909.0,95908.0,0.062125]
[1732836972637,0.01007322,95909.0,95908.0,0.122125]
[1732836972837,0.01007322,95909.0,95908.0,0.202125]
[1732836973250,0.01007322,95909.0,95908.0,0.172125]
[1732836973645,0.01007322,95909.0,95908.0,0.152125]
[1732836976252,0.01007322,95909.0,95908.0,0.082125]
[1732836976651,0.01007322,95909.0,95908.0,0.052125]
[1732836977351,0.06219722,95909.0,95908.0,0.132125]
[1732836978145,0.01007322,95909.0,95908.0,0.132125]
[1732836980641,0.06219722,95909.0,95902.0,0.01659431]
[1732836980847,0.01007322,95909.0,95891.0,0.0332]
[1732836981154,0.01007322,95909.0,95894.0,0.052132]
[1732836981155,0.052133,95895.0,95894.0,0.052132]
[1732836982052,0.052133,95895.0,95894.0,0.102132]
[1732836982247,0.052133,95895.0,95894.0,0.052132]
[1732836982749,0.052133,95895.0,95894.0,0.096132]
[1732836983151,0.052133,95895.0,95894.0,0.116132]
[1732836983455,0.052133,95895.0,95894.0,0.117132]
[1732836983658,0.052133,95895.0,95894.0,0.047132]
[1732836983954,0.053133,95895.0,95894.0,0.046132]
[1732836984154,0.054133,95895.0,95894.0,0.046132]
[1732836984551,0.052133,95893.0,95892.0,0.3608]
[1732836984751,0.052135,95889.0,95888.0,0.00156431]
[1732836985054,0.004,95895.0,95893.0,0.052133]
[1732836985055,0.052133,95894.0,95893.0,0.052133]
[1732836985351,0.052133,95894.0,95893.0,0.162133]
[1732836985558,0.052133,95894.0,95893.0,0.052133]
[1732836985748,0.052133,95894.0,95893.0,0.102133]
[1732836986556,0.052133,95894.0,95893.0,0.162133]
[1732836986755,0.052133,95894.0,95893.0,0.052133]
[1732836986958,0.052133,95894.0,95893.0,0.122133]
[1732836987351,0.052133,95894.0,95893.0,0.052133]
[1732836987546,0.052133,95893.0,95892.0,0.001]
[1732836987761,0.1626,95901.0,95888.0,0.01858401]
[1732836987762,0.052134,95892.0,95888.0,0.01858401]
[1732836987950,0.052134,95892.0,95891.0,0.052134]
[1732836988255,0.052134,95892.0,95891.0,0.132134]
[1732836988645,0.1626,95901.0,95888.0,0.01858401]
[1732836988946,0.052135,95889.0,95888.0,0.05858401]
[1732836989254,0.052135,95889.0,95888.0,0.01858401]
[1732836990156,0.052135,95889.0,95888.0,0.05958401]
[1732836990361,0.052135,95889.0,95888.0,0.01958401]
[1732836990554,0.052135,95889.0,95888.0,0.12072001]
[1732836990753,0.052135,95889.0,95888.0,0.11172001]
[1732836991451,0.053135,95889.0,95888.0,0.11172001]
[1732836995547,0.001,95889.0,95888.0,0.11172001]
[1732836997650,0.001,95889.0,95888.0,0.10572001]
[1732836998259,0.053135,95889.0,95888.0,0.10572001]
[1732836998453,0.001,95889.0,95888.0,0.10572001]
[1732837006268,0.0384,95908.0,95888.0,0.10572001]
[1732837006269,0.28045884,95907.0,95906.0,0.052126]
[1732837006459,0.28045884,95908.0,95906.0,0.15]
[1732837006658,0.28045884,95913.0,95907.0,0.052126]
[1732837006873,0.28045884,95915.0,95907.0,0.202126]
[1732837007464,0.28045884,95915.0,95908.0,0.052125]
[1732837007663,0.052121,95916.0,95908.0,0.202125]
[1732837007868,0.00707322,95909.0,95908.0,0.202125]
[1732837008474,0.01307322,95909.0,95908.0,0.202125]
[1732837009667,0.01407322,95909.0,95908.0,0.202125]
[1732837012272,0.01407322,95909.0,95908.0,0.132125]
[1732837012569,0.052127,95905.0,95904.0,0.052126]
[1732837012773,0.052127,95905.0,95904.0,0.046126]
[1732837012959,0.052127,95905.0,95904.0,0.086126]
[1732837013160,0.052127,95905.0,95904.0,0.046126]
[1732837013363,0.052127,95905.0,95904.0,0.086126]
[1732837013863,0.063127,95905.0,95904.0,0.086126]
[1732837015273,0.063127,95905.0,95904.0,0.04]
[1732837015466,0.063127,95905.0,95904.0,0.092127]
[1732837015662,0.063127,95905.0,95904.0,0.152127]
[1732837015873,0.063127,95905.0,95904.0,0.112127]
[1732837016073,0.063127,95905.0,95904.0,0.052127]
[1732837016277,0.063127,95905.0,95904.0,0.132127]
[1732837018875,0.063127,95905.0,95904.0,0.08]
[1732837019070,0.063127,95905.0,95889.0,0.0313]
[1732837019071,0.052132,95896.0,95895.0,0.05213]
[1732837019272,0.052132,95896.0,95895.0,0.09213]
[1732837020477,0.056132,95896.0,95895.0,0.09213]
[1732837020772,0.004,95896.0,95895.0,0.09213]
[1732837021781,0.056132,95896.0,95895.0,0.05213]
[1732837021980,0.056132,95896.0,95895.0,0.10213]
[1732837022180,0.056132,95896.0,95893.0,0.01702501]
[1732837022181,0.052133,95894.0,95893.0,0.01702501]
[1732837022381,0.3648,95896.0,95892.0,0.052134]
[1732837022576,0.052133,95893.0,95892.0,0.102134]
[1732837023589,0.052133,95893.0,95892.0,0.103134]
[1732837024083,0.052133,95893.0,95892.0,0.102134]
[1732837024277,0.054133,95893.0,95892.0,0.12003405]
[1732837024582,0.054133,95893.0,95892.0,0.07003405]
[1732837024787,0.054133,95893.0,95892.0,0.21003405]
[1732837025884,0.002,95893.0,95892.0,0.21003405]
[1732837026582,0.054133,95893.0,95892.0,0.21003405]
[1732837027684,0.054133,95893.0,95892.0,0.20403405]
[1732837033091,0.054133,95893.0,95892.0,0.141]
[1732837033788,0.054133,95893.0,95892.0,0.193134]
[1732837036090,0.054133,95893.0,95892.0,0.053134]
[1732837036388,0.054133,95893.0,95892.0,0.193134]
[1732837037393,0.054133,95893.0,95892.0,0.063134]
[1732837040592,0.054133,95893.0,95892.0,0.163134]
[1732837040893,0.054133,95893.0,95892.0,0.093134]
[1732837041094,0.054133,95893.0,95892.0,0.173134]
[1732837042097,0.054133,95893.0,95892.0,0.121]
[1732837042906,0.054133,95893.0,95892.0,0.115]
[1732837043698,0.054133,95893.0,95892.0,0.167134]
[1732837044693,0.054133,95893.0,95892.0,0.052134]
[1732837044904,0.054133,95893.0,95892.0,0.092134]
[1732837050298,0.054133,95893.0,95892.0,0.102134]
[1732837050501,0.054133,95893.0,95892.0,0.05]
[1732837052307,0.46626095,95900.0,95892.0,0.05]
[1732837052308,0.00056001,95900.0,95899.0,0.05213]
[1732837052505,7.322e-05,95909.0,95903.0,0.052127]
[1732837052506,0.052128,95904.0,95903.0,0.052127]
[1732837052695,0.052128,95904.0,95899.0,0.65488]
[1732837052696,0.052129,95901.0,95900.0,0.0921]
[1732837053003,0.052129,95901.0,95900.0,0.1621]
[1732837053209,0.052129,95901.0,95900.0,0.214229]
[1732837053899,0.056129,95901.0,95900.0,0.214229]
[1732837054095,0.056129,95901.0,95895.0,0.052132]
[1732837054303,0.052132,95896.0,95895.0,0.052132]
[1732837055108,0.052132,95896.0,95895.0,0.07341094]
[1732837056202,0.053132,95896.0,95895.0,0.02127894]
[1732837056406,0.001,95896.0,95891.0,0.3608]
[1732837056601,0.052134,95892.0,95891.0,0.4008]
[1732837057114,0.052134,95892.0,95891.0,0.452934]
[1732837057311,0.052134,95892.0,95891.0,0.422934]
[1732837057797,0.053134,95892.0,95891.0,0.417934]
[1732837058801,0.053134,95892.0,95891.0,0.43868938]
[1732837059813,0.053134,95892.0,95891.0,0.53868938]
[1732837061810,0.053134,95892.0,95891.0,0.18388938]
[1732837062209,0.053134,95892.0,95891.0,0.19388938]
[1732837062413,0.053134,95892.0,95891.0,0.14175538]
[1732837062611,0.053134,95892.0,95891.0,0.02175538]
[1732837063119,0.053134,95892.0,95891.0,0.001]
[1732837063525,0.365974,95892.0,95867.0,0.0952]
[1732837063814,0.052144,95877.0,95876.0,0.052142]
[1732837064118,0.3608,95880.0,95867.0,0.1025]
[1732837064119,0.052147,95872.0,95871.0,0.052145]
[1732837064419,0.052147,95872.0,95871.0,0.102145]
[1732837064816,0.052147,95872.0,95871.0,0.052145]
[1732837065008,0.052147,95872.0,95871.0,0.112145]
[1732837066515,0.052147,95872.0,95871.0,0.115145]
[1732837066817,0.053147,95872.0,95871.0,0.115145]
[1732837068412,0.053147,95872.0,95871.0,0.095145]
[1732837069615,0.053147,95872.0,95871.0,0.055145]
[1732837069815,0.053147,95872.0,95871.0,0.105145]
[1732837070118,0.053147,95872.0,95871.0,0.055145]
[1732837072821,0.053147,95872.0,95871.0,0.049145]
[1732837073017,0.053147,95872.0,95871.0,0.099145]
[1732837073220,0.053147,95872.0,95871.0,0.049145]
[1732837073514,0.053147,95872.0,95871.0,0.099145]
[1732837077927,0.053147,95872.0,95871.0,0.053]
[1732837078122,0.05322659,95872.0,95871.0,0.003]
[1732837079115,0.20726659,95872.0,95871.0,0.003]
[1732837079521,0.05322659,95872.0,95871.0,0.055145]
[1732837079727,0.20726659,95872.0,95871.0,0.055145]
[1732837080452,0.05322659,95872.0,95871.0,0.095145]
[1732837082318,0.00107959,95872.0,95871.0,0.095145]
[1732837082521,0.0073,95891.0,95872.0,0.052144]
[1732837082724,0.052136,95889.0,95888.0,0.052135]
[1732837082925,0.36236456,95892.0,95891.0,0.052134]
[1732837083118,0.41449856,95892.0,95891.0,0.152134]
[1732837083531,0.41462702,95892.0,95891.0,0.152134]
[1732837084328,0.41462702,95892.0,95891.0,0.04]
[1732837084730,0.00169302,95892.0,95891.0,0.092134]
[1732837084935,0.00012846,95892.0,95891.0,0.092134]
[1732837085236,0.3608,95900.0,95899.0,0.05213]
[1732837085536,0.3608,95900.0,95899.0,0.20213]
[1732837086127,0.36089783,95900.0,95899.0,0.20213]
[1732837086632,0.36489783,95900.0,95899.0,0.20213]
[1732837086832,0.36789783,95900.0,95899.0,0.20213]
[1732837087839,0.36789783,95900.0,95899.0,0.19613]
[1732837088534,0.36789783,95900.0,95899.0,0.21768842]
[1732837089438,0.36389783,95900.0,95899.0,0.21768842]
[1732837089636,0.36689783,95900.0,95899.0,0.21768842]
[1732837089936,0.36689783,95900.0,95899.0,0.12768842]
[1732837089937,0.36589783,95900.0,95899.0,0.12768842]
[1732837093438,0.36589783,95900.0,95899.0,0.18768842]
[1732837094332,0.36589783,95900.0,95899.0,0.04613]
[1732837094524,0.052133,95896.0,95895.0,0.052132]
[1732837094736,0.052133,95896.0,95895.0,0.132132]
[1732837095338,0.052133,95896.0,95895.0,0.08]
[1732837095637,0.054132,95896.0,95895.0,0.112132]
[1732837095939,0.002,95896.0,95895.0,0.112132]
[1732837096128,0.00209783,95900.0,95895.0,0.472932]
[1732837096325,0.00209783,95900.0,95899.0,0.05213]
[1732837096531,0.00209783,95900.0,95899.0,0.19213]
[1732837097329,9.783e-05,95900.0,95899.0,0.19213]
[1732837097927,0.05322683,95900.0,95899.0,0.19213]
[1732837098135,0.05422683,95900.0,95899.0,0.19213]
[1732837098633,0.05422683,95900.0,95899.0,0.10213]
[1732837098825,0.05422683,95900.0,95899.0,0.20213]
[1732837099445,0.05522683,95900.0,95899.0,0.20213]
[1732837099740,0.05522683,95900.0,95899.0,0.15]
[1732837099936,0.05522683,95900.0,95899.0,0.04]
[1732837100135,0.41602683,95900.0,95899.0,0.04]
[1732837100335,0.052132,95898.0,95897.0,0.052131]
[1732837100538,0.052132,95898.0,95897.0,0.182131]
[1732837101938,0.054132,95898.0,95897.0,0.182131]
[1732837102837,0.054132,95898.0,95897.0,0.176131]
[1732837104941,0.054132,95898.0,95897.0,0.19745733]
[1732837106136,0.002,95898.0,95897.0,0.19745733]
[1732837107135,0.05413,95898.0,95897.0,0.19745733]
[1732837107341,0.002,95898.0,95897.0,0.19745733]
[1732837108446,0.05413,95898.0,95897.0,0.19745733]
[1732837110037,0.002,95898.0,95897.0,0.19745733]
[1732837112552,0.002,95898.0,95897.0,0.23065733]
[1732837113254,0.002,95898.0,95897.0,0.38457733]
[1732837117847,0.002,95898.0,95897.0,0.37857733]
[1732837119755,0.001,95898.0,95897.0,0.37857733]
[1732837120541,9.783e-05,95900.0,95899.0,0.05213]
[1732837120749,9.783e-05,95900.0,95899.0,0.18213]
[1732837129765,0.05222683,95900.0,95899.0,0.18213]
[1732837129969,9.783e-05,95900.0,95899.0,0.18213]
[1732837132365,0.00209783,95900.0,95899.0,0.18213]
[1732837132755,0.00209783,95900.0,95899.0,0.17613]
[1732837133555,0.00309783,95900.0,95899.0,0.17613]
[1732837135052,0.05522683,95900.0,95899.0,0.17613]
[1732837136859,0.05522683,95900.0,95899.0,0.04613]
[1732837137057,0.05522683,95900.0,95899.0,0.11613]